[Event "*** Titled Tuesday Blitz"]
[Site "Chess.com"]
[Date "2021.02.02"]
[Round "8"]
[White "TregubovP"]
[Black "Supernotar"]
[Result "0-1"]
[WhiteElo "2594"]
[BlackElo "2780"]
[TimeControl "180+1"]
[EndTime "11:31:53 PST"]
[Termination "Supernotar won by resignation"]

1. e4 {[%clk 0:03:00.9]} 1... c6 {[%clk 0:03:00]} 2. Nf3 {[%clk 0:03:00.3]} 2...
d5 {[%clk 0:03:00]} 3. Nc3 {[%clk 0:03:00.9]} 3... Bg4 {[%clk 0:02:59.2]} 4. h3
{[%clk 0:02:59.2]} 4... Bxf3 {[%clk 0:02:59.3]} 5. Qxf3 {[%clk 0:02:59.7]} 5...
e6 {[%clk 0:02:59.8]} 6. g3 {[%clk 0:02:58.3]} 6... dxe4 {[%clk 0:02:59.4]} 7.
Nxe4 {[%clk 0:02:56.4]} 7... Nd7 {[%clk 0:02:59.2]} 8. Bg2 {[%clk 0:02:55.6]}
8... Ngf6 {[%clk 0:02:59.1]} 9. O-O {[%clk 0:02:54.8]} 9... Nxe4 {[%clk
0:02:57.6]} 10. Qxe4 {[%clk 0:02:54.9]} 10... Nf6 {[%clk 0:02:58.5]} 11. Qe2
{[%clk 0:02:48.5]} 11... Be7 {[%clk 0:02:58.5]} 12. Rd1 {[%clk 0:02:48.1]} 12...
O-O {[%clk 0:02:58.4]} 13. d4 {[%clk 0:02:48]} 13... Qb6 {[%clk 0:02:47.2]} 14.
c4 {[%clk 0:02:45.8]} 14... Rfd8 {[%clk 0:02:44.8]} 15. Be3 {[%clk 0:02:46.1]}
15... Qc7 {[%clk 0:02:40.8]} 16. Rab1 {[%clk 0:02:38.5]} 16... Rd7 {[%clk
0:02:37.6]} 17. b4 {[%clk 0:02:37.5]} 17... a6 {[%clk 0:02:34.1]} 18. a4 {[%clk
0:02:37.2]} 18... Rad8 {[%clk 0:02:30]} 19. b5 {[%clk 0:02:34.7]} 19... axb5
{[%clk 0:02:28]} 20. axb5 {[%clk 0:02:34]} 20... h6 {[%clk 0:02:11.4]} 21. b6
{[%clk 0:01:39.9]} 21... Qc8 {[%clk 0:02:07.9]} 22. Ra1 {[%clk 0:01:39.7]} 22...
Bf8 {[%clk 0:01:57.4]} 23. Qf3 {[%clk 0:01:39]} 23... c5 {[%clk 0:01:49.5]} 24.
dxc5 {[%clk 0:01:31.6]} 24... Bxc5 {[%clk 0:01:50.4]} 25. Rxd7 {[%clk
0:01:15.4]} 25... Rxd7 {[%clk 0:01:51.3]} 26. Ra7 {[%clk 0:01:03.6]} 26... Bxe3
{[%clk 0:01:47.9]} 27. Qxe3 {[%clk 0:01:03.9]} 27... Qxc4 {[%clk 0:01:46.6]} 28.
Rxb7 {[%clk 0:01:01.1]} 28... Rxb7 {[%clk 0:01:42.6]} 29. Bxb7 {[%clk
0:01:00.8]} 29... Qb4 {[%clk 0:01:41.1]} 30. Kg2 {[%clk 0:00:57.2]} 30... Nd7
{[%clk 0:01:36.5]} 31. Qc1 {[%clk 0:00:45.1]} 31... Nxb6 {[%clk 0:01:33]} 32.
Qc7 {[%clk 0:00:45]} 32... Qd4 {[%clk 0:01:21.2]} 33. Bf3 {[%clk 0:00:42.4]}
33... g6 {[%clk 0:01:12.4]} 34. Qe7 {[%clk 0:00:39.9]} 34... Kg7 {[%clk
0:01:10.1]} 35. Bc6 {[%clk 0:00:38.5]} 35... Nd5 {[%clk 0:01:02.4]} 36. Qd7
{[%clk 0:00:28.4]} 36... Qe4+ {[%clk 0:00:59.9]} 37. Kg1 {[%clk 0:00:26.3]}
37... Qe1+ {[%clk 0:00:58.7]} 38. Kg2 {[%clk 0:00:26.5]} 38... Qe5 {[%clk
0:00:56.9]} 39. h4 {[%clk 0:00:25.6]} 39... Nf6 {[%clk 0:00:54.8]} 40. Qb7
{[%clk 0:00:25.5]} 40... Qf5 {[%clk 0:00:50.8]} 41. Bf3 {[%clk 0:00:25.2]} 41...
g5 {[%clk 0:00:49]} 42. hxg5 {[%clk 0:00:24.9]} 42... hxg5 {[%clk 0:00:49.9]}
43. Qb4 {[%clk 0:00:24.1]} 43... Nd7 {[%clk 0:00:36.6]} 44. Qd4+ {[%clk
0:00:23.8]} 44... Ne5 {[%clk 0:00:35.9]} 45. Be4 {[%clk 0:00:22.3]} 45... Qf6
{[%clk 0:00:35.5]} 46. Bb7 {[%clk 0:00:22.3]} 46... Ng6 {[%clk 0:00:34.3]} 47.
Qxf6+ {[%clk 0:00:19.9]} 47... Kxf6 {[%clk 0:00:35.2]} 48. Ba8 {[%clk
0:00:19.7]} 48... Ke5 {[%clk 0:00:34.5]} 49. Bb7 {[%clk 0:00:20.2]} 49... Ne7
{[%clk 0:00:32.8]} 50. Ba8 {[%clk 0:00:19.9]} 50... Nd5 {[%clk 0:00:32.7]} 51.
Bc6 {[%clk 0:00:20.1]} 51... f6 {[%clk 0:00:32.4]} 52. Bb7 {[%clk 0:00:20]}
52... Nb4 {[%clk 0:00:32.6]} 53. Ba8 {[%clk 0:00:19.3]} 53... Na2 {[%clk
0:00:32.7]} 54. Bc6 {[%clk 0:00:18.8]} 54... Nc1 {[%clk 0:00:32.6]} 55. Bd7
{[%clk 0:00:19]} 55... Kd5 {[%clk 0:00:31.7]} 56. Kf3 {[%clk 0:00:19]} 56... Nb3
{[%clk 0:00:30.9]} 57. Ke3 {[%clk 0:00:19.2]} 57... Nc5 {[%clk 0:00:30.7]} 58.
Bb5 {[%clk 0:00:19.4]} 58... Ke5 {[%clk 0:00:27.6]} 59. f4+ {[%clk 0:00:19.2]}
59... gxf4+ {[%clk 0:00:27.4]} 60. gxf4+ {[%clk 0:00:19.6]} 60... Kf5 {[%clk
0:00:26.6]} 61. Bc4 {[%clk 0:00:19.8]} 61... Nb7 {[%clk 0:00:24.8]} 62. Bf1
{[%clk 0:00:19.6]} 62... Kg4 {[%clk 0:00:22.2]} 63. Be2+ {[%clk 0:00:16.6]}
63... Kg3 {[%clk 0:00:21]} 64. Bc4 {[%clk 0:00:16.4]} 64... Nd8 {[%clk
0:00:20.4]} 65. Bb3 {[%clk 0:00:16.2]} 65... Kg4 {[%clk 0:00:20.3]} 66. Bc4
{[%clk 0:00:15.4]} 66... Kf5 {[%clk 0:00:20]} 67. Bd3+ {[%clk 0:00:15.9]} 67...
Kg4 {[%clk 0:00:20.5]} 68. Bc4 {[%clk 0:00:16.2]} 68... Kh5 {[%clk 0:00:19.7]}
69. Ke4 {[%clk 0:00:13.2]} 69... Kg6 {[%clk 0:00:20.1]} 70. f5+ {[%clk 0:00:08]}
70... exf5+ {[%clk 0:00:20.2]} 71. Kf4 {[%clk 0:00:08.5]} 71... Nc6 {[%clk
0:00:16.3]} 72. Be6 {[%clk 0:00:06.8]} 72... Ne7 {[%clk 0:00:16.3]} 73. Bd7
{[%clk 0:00:04.3]} 73... Nd5+ {[%clk 0:00:16]} 74. Kf3 {[%clk 0:00:04.8]} 74...
Kg5 {[%clk 0:00:16.5]} 75. Bc6 {[%clk 0:00:05]} 75... Ne7 {[%clk 0:00:16.3]} 76.
Bb7 {[%clk 0:00:05.1]} 76... f4 {[%clk 0:00:16.6]} 77. Be4 {[%clk 0:00:04.7]}
77... f5 {[%clk 0:00:15.1]} 78. Bb7 {[%clk 0:00:04]} 78... Ng6 {[%clk
0:00:15.2]} 79. Bd5 {[%clk 0:00:03.7]} 79... Ne5+ {[%clk 0:00:15.4]} 80. Kf2
{[%clk 0:00:04.2]} 80... Kg4 {[%clk 0:00:15.7]} 81. Bb7 {[%clk 0:00:04.2]} 81...
f3 {[%clk 0:00:15.9]} 82. Ba6 {[%clk 0:00:03.4]} 82... Kf4 {[%clk 0:00:16]} 83.
Bf1 {[%clk 0:00:03.8]} 83... Ng4+ {[%clk 0:00:15.9]} 84. Ke1 {[%clk 0:00:04.2]}
84... Ke3 {[%clk 0:00:15.4]} 0-1

[Event "*** Titled Tuesday Blitz"]
[Site "Chess.com"]
[Date "2021.02.02"]
[Round "8"]
[White "Tpros"]
[Black "zimmm36"]
[Result "0-1"]
[WhiteElo "2478"]
[BlackElo "2140"]
[TimeControl "180+1"]
[EndTime "11:31:55 PST"]
[Termination "zimmm36 won on time"]

1. c4 {[%clk 0:03:00.9]} 1... c5 {[%clk 0:02:59]} 2. Nc3 {[%clk 0:03:00.3]} 2...
Nc6 {[%clk 0:02:57.4]} 3. g3 {[%clk 0:03:01.2]} 3... g6 {[%clk 0:02:56.4]} 4.
Bg2 {[%clk 0:03:02.1]} 4... Bg7 {[%clk 0:02:51.5]} 5. d3 {[%clk 0:03:03]} 5...
e6 {[%clk 0:02:50.7]} 6. Be3 {[%clk 0:03:02.9]} 6... b6 {[%clk 0:02:46.9]} 7.
Qd2 {[%clk 0:03:02.5]} 7... Bb7 {[%clk 0:02:45.3]} 8. h4 {[%clk 0:03:02.6]} 8...
h5 {[%clk 0:02:43.7]} 9. Nh3 {[%clk 0:03:01.8]} 9... Nge7 {[%clk 0:02:42.5]} 10.
Nf4 {[%clk 0:03:01]} 10... Nf5 {[%clk 0:02:39.6]} 11. Nb5 {[%clk 0:02:56.9]}
11... a6 {[%clk 0:02:32.7]} 12. Nc3 {[%clk 0:02:55]} 12... Nxe3 {[%clk 0:02:31]}
13. Qxe3 {[%clk 0:02:52.1]} 13... Qe7 {[%clk 0:02:30.8]} 14. Qd2 {[%clk
0:02:42.9]} 14... O-O {[%clk 0:02:25.4]} 15. O-O {[%clk 0:02:42.4]} 15... Rab8
{[%clk 0:02:23.5]} 16. Rab1 {[%clk 0:02:42.1]} 16... d6 {[%clk 0:02:18.1]} 17.
a3 {[%clk 0:02:41.3]} 17... a5 {[%clk 0:02:15.6]} 18. e3 {[%clk 0:02:39.8]}
18... Rfd8 {[%clk 0:02:13.2]} 19. Rfe1 {[%clk 0:02:33.8]} 19... Qf6 {[%clk
0:02:12]} 20. Ne4 {[%clk 0:02:28]} 20... Qe5 {[%clk 0:02:08.6]} 21. Ne2 {[%clk
0:02:25.6]} 21... d5 {[%clk 0:02:05.3]} 22. cxd5 {[%clk 0:02:24.2]} 22... exd5
{[%clk 0:02:03.7]} 23. f4 {[%clk 0:02:22.5]} 23... Qe7 {[%clk 0:02:02.1]} 24.
Ng5 {[%clk 0:02:22]} 24... Ba6 {[%clk 0:01:55.6]} 25. Kh2 {[%clk 0:02:20.2]}
25... Rbc8 {[%clk 0:01:53]} 26. Bh3 {[%clk 0:02:15.7]} 26... Rc7 {[%clk
0:01:51.4]} 27. Qc2 {[%clk 0:02:07.3]} 27... Qxe3 {[%clk 0:01:47.3]} 28. Nc3
{[%clk 0:02:07.5]} 28... Qxd3 {[%clk 0:01:42.7]} 29. Qb3 {[%clk 0:02:02.9]}
29... Rb8 {[%clk 0:01:23.6]} 30. Rbd1 {[%clk 0:02:03.1]} 30... Bc4 {[%clk
0:01:17.3]} 31. Rxd3 {[%clk 0:01:52.5]} 31... Bxb3 {[%clk 0:01:16.6]} 32. Nxd5
{[%clk 0:01:49.3]} 32... Bxd5 {[%clk 0:01:09.3]} 33. Rxd5 {[%clk 0:01:50.2]}
33... Bxb2 {[%clk 0:01:09.1]} 34. a4 {[%clk 0:01:50.1]} 34... Bf6 {[%clk
0:01:05.4]} 35. Ne4 {[%clk 0:01:49.5]} 35... Be7 {[%clk 0:01:01.5]} 36. f5
{[%clk 0:01:37.1]} 36... Rd8 {[%clk 0:00:54.7]} 37. Nc3 {[%clk 0:01:33.1]} 37...
Kg7 {[%clk 0:00:39]} 38. fxg6 {[%clk 0:01:31.9]} 38... fxg6 {[%clk 0:00:35.3]}
39. Re6 {[%clk 0:01:31.7]} 39... Bf6 {[%clk 0:00:24.5]} 40. Nb5 {[%clk
0:01:16.3]} 40... Rxd5 {[%clk 0:00:20.4]} 41. Nxc7 {[%clk 0:01:16.8]} 41... Rd2+
{[%clk 0:00:20.5]} 42. Kh1 {[%clk 0:01:17.5]} 42... Nd4 {[%clk 0:00:20.4]} 43.
Rd6 {[%clk 0:01:07]} 43... Nf3 {[%clk 0:00:19.7]} 44. Rd7+ {[%clk 0:01:04.8]}
44... Rxd7 {[%clk 0:00:18.6]} 45. Bxd7 {[%clk 0:01:05.7]} 45... c4 {[%clk
0:00:19.5]} 46. Nd5 {[%clk 0:00:51.6]} 46... c3 {[%clk 0:00:18.6]} 47. Ne3
{[%clk 0:00:51.4]} 47... Nd4 {[%clk 0:00:17.2]} 48. Kg2 {[%clk 0:00:40]} 48...
c2 {[%clk 0:00:16.6]} 49. Nxc2 {[%clk 0:00:40.5]} 49... Nxc2 {[%clk 0:00:17.5]}
50. Kf3 {[%clk 0:00:41.4]} 50... Nd4+ {[%clk 0:00:17.2]} 51. Ke4 {[%clk
0:00:42.3]} 51... Nb3 {[%clk 0:00:17.6]} 52. Kf3 {[%clk 0:00:40]} 52... Nc5
{[%clk 0:00:18.5]} 53. Bb5 {[%clk 0:00:40.5]} 53... Be5 {[%clk 0:00:18.5]} 54.
g4 {[%clk 0:00:40.7]} 54... Kf6 {[%clk 0:00:19]} 55. gxh5 {[%clk 0:00:40.6]}
55... gxh5 {[%clk 0:00:19.9]} 56. Be8 {[%clk 0:00:41.5]} 56... Bc3 {[%clk
0:00:18.5]} 57. Kf4 {[%clk 0:00:40.9]} 57... Be1 {[%clk 0:00:18]} 58. Ke3 {[%clk
0:00:38.3]} 58... Bxh4 {[%clk 0:00:17.7]} 59. Bxh5 {[%clk 0:00:37.8]} 59... Ke5
{[%clk 0:00:18.6]} 60. Be8 {[%clk 0:00:37.5]} 60... Be7 {[%clk 0:00:19.5]} 61.
Bc6 {[%clk 0:00:35.4]} 61... Bd6 {[%clk 0:00:20.4]} 62. Bb5 {[%clk 0:00:33.2]}
62... Ne6 {[%clk 0:00:20.6]} 63. Kd3 {[%clk 0:00:32.8]} 63... Bc5 {[%clk
0:00:21.5]} 64. Kc4 {[%clk 0:00:32]} 64... Nd4 {[%clk 0:00:22.4]} 65. Bd7 {[%clk
0:00:30.9]} 65... Kd6 {[%clk 0:00:23.3]} 66. Bh3 {[%clk 0:00:30.3]} 66... Nc6
{[%clk 0:00:23.1]} 67. Kb5 {[%clk 0:00:29.7]} 67... Ne5 {[%clk 0:00:24]} 68. Bf5
{[%clk 0:00:29.4]} 68... Kd5 {[%clk 0:00:24]} 69. Bh3 {[%clk 0:00:21.2]} 69...
Kd4 {[%clk 0:00:24.9]} 70. Bf1 {[%clk 0:00:13.6]} 70... Kc3 {[%clk 0:00:25.8]}
71. Bg2 {[%clk 0:00:13.1]} 71... Kb3 {[%clk 0:00:26.7]} 72. Bd5+ {[%clk
0:00:11.9]} 72... Ka3 {[%clk 0:00:27.6]} 73. Be6 {[%clk 0:00:09.5]} 73... Nf3
{[%clk 0:00:25.4]} 74. Kc4 {[%clk 0:00:06.1]} 74... Nd4 {[%clk 0:00:26.3]} 75.
Bd7 {[%clk 0:00:06.2]} 75... Ne2 {[%clk 0:00:24.3]} 76. Bc6 {[%clk 0:00:05.1]}
76... Bb4 {[%clk 0:00:23.7]} 77. Bb5 {[%clk 0:00:04.9]} 77... Nc3 {[%clk
0:00:24.6]} 78. Bd7 {[%clk 0:00:04.2]} 78... Nxa4 {[%clk 0:00:24.1]} 79. Bb5
{[%clk 0:00:03.2]} 79... Nc3 {[%clk 0:00:22.5]} 80. Bd7 {[%clk 0:00:02.8]} 80...
Kb2 {[%clk 0:00:22.1]} 81. Kd3 {[%clk 0:00:02.5]} 81... Bc5 {[%clk 0:00:23]} 82.
Kc4 {[%clk 0:00:01.9]} 82... a4 {[%clk 0:00:23]} 83. Kd3 {[%clk 0:00:01.9]}
83... a3 {[%clk 0:00:20.7]} 84. Be6 {[%clk 0:00:02.1]} 84... a2 {[%clk
0:00:21.6]} 85. Bxa2 {[%clk 0:00:02.1]} 85... Kxa2 {[%clk 0:00:22.2]} 86. Kc4
{[%clk 0:00:02.7]} 86... Kb2 {[%clk 0:00:22]} 87. Kd3 {[%clk 0:00:02.6]} 87...
Kb3 {[%clk 0:00:21.7]} 88. Kd2 {[%clk 0:00:02.6]} 88... b5 {[%clk 0:00:22.6]}
89. Kc1 {[%clk 0:00:01.6]} 89... b4 {[%clk 0:00:23.5]} 0-1

[Event "*** Titled Tuesday Blitz"]
[Site "Chess.com"]
[Date "2021.02.02"]
[Round "8"]
[White "DenLaz"]
[Black "PopMilan95"]
[Result "1/2-1/2"]
[WhiteElo "2809"]
[BlackElo "2619"]
[TimeControl "180+1"]
[EndTime "11:32:21 PST"]
[Termination "Game drawn - insufficient material"]

1. d4 {[%clk 0:03:00.9]} 1... Nf6 {[%clk 0:02:55.5]} 2. c4 {[%clk 0:03:01.2]}
2... g6 {[%clk 0:02:53.4]} 3. g3 {[%clk 0:03:01.1]} 3... Bg7 {[%clk 0:02:51.1]}
4. Bg2 {[%clk 0:03:01.7]} 4... O-O {[%clk 0:02:51]} 5. Nc3 {[%clk 0:03:01.6]}
5... d6 {[%clk 0:02:47.9]} 6. Nf3 {[%clk 0:03:01.6]} 6... c6 {[%clk 0:02:41.7]}
7. O-O {[%clk 0:03:01.4]} 7... a6 {[%clk 0:02:37.4]} 8. e4 {[%clk 0:02:56.5]}
8... Bg4 {[%clk 0:02:35.8]} 9. h3 {[%clk 0:02:48.6]} 9... Bxf3 {[%clk
0:02:32.4]} 10. Bxf3 {[%clk 0:02:39.9]} 10... Nfd7 {[%clk 0:02:24.5]} 11. Be3
{[%clk 0:02:13.6]} 11... c5 {[%clk 0:02:18]} 12. Rc1 {[%clk 0:02:03.9]} 12...
Nc6 {[%clk 0:02:15]} 13. dxc5 {[%clk 0:01:53.5]} 13... dxc5 {[%clk 0:02:09.8]}
14. Bg2 {[%clk 0:01:52.9]} 14... Nd4 {[%clk 0:01:40]} 15. f4 {[%clk 0:01:51.8]}
15... f5 {[%clk 0:01:28.1]} 16. e5 {[%clk 0:01:50.4]} 16... e6 {[%clk
0:01:18.8]} 17. Bxd4 {[%clk 0:01:45.1]} 17... cxd4 {[%clk 0:01:18.4]} 18. Qxd4
{[%clk 0:01:46]} 18... Qc7 {[%clk 0:01:12.3]} 19. Rfd1 {[%clk 0:01:31.9]} 19...
Rf7 {[%clk 0:01:12.1]} 20. Qd6 {[%clk 0:01:30.8]} 20... Nf8 {[%clk 0:01:11.2]}
21. Qxc7 {[%clk 0:01:28.4]} 21... Rxc7 {[%clk 0:01:12.1]} 22. b3 {[%clk
0:01:27.1]} 22... g5 {[%clk 0:01:11.9]} 23. Ne2 {[%clk 0:01:23.7]} 23... gxf4
{[%clk 0:01:09.9]} 24. gxf4 {[%clk 0:01:24.6]} 24... Rac8 {[%clk 0:01:09.1]} 25.
Kf2 {[%clk 0:01:22.6]} 25... b5 {[%clk 0:01:05.1]} 26. cxb5 {[%clk 0:01:20]}
26... axb5 {[%clk 0:01:03.8]} 27. Rxc7 {[%clk 0:01:19.6]} 27... Rxc7 {[%clk
0:01:04.7]} 28. Rc1 {[%clk 0:01:20.3]} 28... Ra7 {[%clk 0:00:59.9]} 29. Rc2
{[%clk 0:01:19.5]} 29... Ng6 {[%clk 0:00:58.9]} 30. Kg3 {[%clk 0:00:49.4]} 30...
Bh6 {[%clk 0:00:57.7]} 31. h4 {[%clk 0:00:47.3]} 31... Rg7 {[%clk 0:00:55.7]}
32. Rc8+ {[%clk 0:00:46.9]} 32... Kf7 {[%clk 0:00:39]} 33. Rc7+ {[%clk
0:00:44.9]} 33... Kf8 {[%clk 0:00:29.4]} 34. Rxg7 {[%clk 0:00:43.9]} 34... Bxg7
{[%clk 0:00:19.6]} 35. Nd4 {[%clk 0:00:43.2]} 35... Ke7 {[%clk 0:00:16.9]} 36.
h5 {[%clk 0:00:42]} 36... Nxe5 {[%clk 0:00:15.2]} 37. Nxb5 {[%clk 0:00:37.6]}
37... Nd3 {[%clk 0:00:14.9]} 38. a4 {[%clk 0:00:28.5]} 38... Bh6 {[%clk
0:00:12.8]} 39. Bf1 {[%clk 0:00:28.6]} 39... Nxf4 {[%clk 0:00:11.2]} 40. a5
{[%clk 0:00:29.2]} 40... Nd5 {[%clk 0:00:11.4]} 41. a6 {[%clk 0:00:28.8]} 41...
Nb6 {[%clk 0:00:09.5]} 42. a7 {[%clk 0:00:29]} 42... Bg7 {[%clk 0:00:09.3]} 43.
Bg2 {[%clk 0:00:28.1]} 43... Be5+ {[%clk 0:00:09.2]} 44. Kf2 {[%clk 0:00:27.8]}
44... Kf6 {[%clk 0:00:08.2]} 45. a8=Q {[%clk 0:00:27.4]} 45... Nxa8 {[%clk
0:00:08.8]} 46. Bxa8 {[%clk 0:00:28.1]} 46... Bb8 {[%clk 0:00:07.9]} 47. Bf3
{[%clk 0:00:28]} 47... e5 {[%clk 0:00:08.2]} 48. Nc3 {[%clk 0:00:27.9]} 48... e4
{[%clk 0:00:07.7]} 49. Bg2 {[%clk 0:00:18.7]} 49... Ke5 {[%clk 0:00:07.2]} 50.
Ke2 {[%clk 0:00:16.1]} 50... Kd4 {[%clk 0:00:04.4]} 51. Nb5+ {[%clk 0:00:15.4]}
51... Ke5 {[%clk 0:00:04]} 52. Nc3 {[%clk 0:00:09.5]} 52... Kd4 {[%clk
0:00:04.2]} 53. Nb1 {[%clk 0:00:07.4]} 53... f4 {[%clk 0:00:04]} 54. Nd2 {[%clk
0:00:04.9]} 54... f3+ {[%clk 0:00:04.1]} 55. Bxf3 {[%clk 0:00:05.5]} 55... exf3+
{[%clk 0:00:05]} 56. Nxf3+ {[%clk 0:00:06.4]} 56... Ke4 {[%clk 0:00:02.7]} 57.
Ng5+ {[%clk 0:00:04]} 57... Kf5 {[%clk 0:00:03.2]} 58. Nxh7 {[%clk 0:00:04.6]}
58... Kg4 {[%clk 0:00:03.8]} 59. Nf6+ {[%clk 0:00:04.9]} 59... Kg5 {[%clk
0:00:04.1]} 60. Nd7 {[%clk 0:00:05.2]} 60... Bd6 {[%clk 0:00:03.7]} 61. Kd3
{[%clk 0:00:04.8]} 61... Kxh5 {[%clk 0:00:04.1]} 62. Ke4 {[%clk 0:00:05.7]}
62... Kg6 {[%clk 0:00:04]} 63. Kd5 {[%clk 0:00:05.9]} 63... Ba3 {[%clk
0:00:04.5]} 64. Ke6 {[%clk 0:00:06.2]} 64... Kg7 {[%clk 0:00:04.2]} 65. Ne5
{[%clk 0:00:05.3]} 65... Kf8 {[%clk 0:00:04.3]} 66. Nc4 {[%clk 0:00:05.9]} 66...
Bb4 {[%clk 0:00:04.5]} 67. Kd7 {[%clk 0:00:05.9]} 67... Kf7 {[%clk 0:00:04.8]}
68. Ne5+ {[%clk 0:00:06.3]} 68... Kf6 {[%clk 0:00:04.5]} 69. Nc6 {[%clk
0:00:07.2]} 69... Bc3 {[%clk 0:00:05]} 70. Ne7 {[%clk 0:00:06.5]} 70... Ke5
{[%clk 0:00:04.7]} 71. Kc6 {[%clk 0:00:05.9]} 71... Kd4 {[%clk 0:00:04.4]} 72.
Nd5 {[%clk 0:00:06.8]} 72... Be1 {[%clk 0:00:04.5]} 73. Kd6 {[%clk 0:00:06]}
73... Kd3 {[%clk 0:00:04.6]} 74. Kc5 {[%clk 0:00:04.8]} 74... Kc2 {[%clk
0:00:05]} 75. Kc4 {[%clk 0:00:05.7]} 75... Kb2 {[%clk 0:00:05.3]} 76. Nf4 {[%clk
0:00:05.3]} 76... Ka3 {[%clk 0:00:05.3]} 77. Nd3 {[%clk 0:00:06]} 77... Ba5
{[%clk 0:00:05.5]} 78. Nf2 {[%clk 0:00:06.2]} 78... Bd2 {[%clk 0:00:05.4]} 79.
Ne4 {[%clk 0:00:06.5]} 79... Ba5 {[%clk 0:00:05.5]} 80. Nd6 {[%clk 0:00:06.6]}
80... Be1 {[%clk 0:00:05.4]} 81. Nb5+ {[%clk 0:00:07.3]} 81... Kb2 {[%clk
0:00:05.8]} 82. Nd4 {[%clk 0:00:07.1]} 82... Ba5 {[%clk 0:00:05.7]} 83. Nc6
{[%clk 0:00:07.7]} 83... Bd2 {[%clk 0:00:05.7]} 84. Ne5 {[%clk 0:00:08.6]} 84...
Ba5 {[%clk 0:00:05.4]} 85. Nd3+ {[%clk 0:00:08.8]} 85... Ka3 {[%clk 0:00:05.9]}
86. Nf4 {[%clk 0:00:09.1]} 86... Be1 {[%clk 0:00:06.1]} 87. Ne6 {[%clk
0:00:09.4]} 87... Ba5 {[%clk 0:00:06.4]} 88. Nc5 {[%clk 0:00:09.8]} 88... Be1
{[%clk 0:00:06.6]} 89. Nb7 {[%clk 0:00:09.1]} 89... Bd2 {[%clk 0:00:06.4]} 90.
Nd6 {[%clk 0:00:08.7]} 90... Be1 {[%clk 0:00:06.8]} 91. Nb5+ {[%clk 0:00:09.6]}
91... Kb2 {[%clk 0:00:06.9]} 92. Nd4 {[%clk 0:00:10]} 92... Ba5 {[%clk
0:00:06.6]} 93. Kb5 {[%clk 0:00:08.3]} 93... Bc3 {[%clk 0:00:06.4]} 94. Nc6
{[%clk 0:00:08.1]} 94... Kxb3 {[%clk 0:00:06.6]} 1/2-1/2